lending/lending_fUSD_20260204
["ID","MTS","AMOUNT","RATE_DAILY","PERIOD"]
[404474126,1770178240715,-1157.49159011,0.000179,2]
[404474127,1770178240724,-1000.0,0.000179,2]
[404474128,1770178240733,-500.0,0.000179,2]
[404474129,1770178240742,-10000.0,0.000179,2]
[404474130,1770178240752,-158.18376022,0.000179,2]
[404474131,1770178240761,-395.12055999,0.000179,2]
[404474132,1770178240770,-25000.0,0.000179,3]
[404474133,1770178240779,-160.0,0.000179,3]
[404474134,1770178240789,-25000.0,0.000179,3]
[404474135,1770178240799,-572.91702875,0.000179,2]
[404474136,1770178240808,-150.0,0.000179,2]
[404474137,1770178240816,-642.20258695,0.000179,3]
[404474138,1770178240825,-198.06056872,0.000179,2]
[404474139,1770178240834,-1157.49159011,0.000179,2]
[404474140,1770178240843,-8975.0,0.000179,2]
[404474141,1770178240852,-155.94,0.00017913,2]
[404474142,1770178240861,-496.6693993,0.00017973,2]
[404474143,1770178240870,-465.90748908,0.00017973,2]
[404474144,1770178240879,-500.0,0.00017973,2]
[404474145,1770178240888,-500.0,0.00017973,2]
[404474146,1770178240897,-500.0,0.00017973,2]
[404474147,1770178240907,-500.68854041,0.00017973,2]
[404474148,1770178240916,-336.59163653,0.00017973,2]
[404474149,1770178240925,-501.02089422,0.00017973,2]
[404474150,1770178240934,-151.18993016,0.00017973,2]
[404474151,1770178240943,-500.96948842,0.00017973,2]
[404474152,1770178240952,-160.61789884,0.00017973,2]
[404474153,1770178240961,-500.0,0.00017973,2]
[404474154,1770178240970,-500.0,0.00017973,2]
[404474155,1770178240979,-500.0,0.00017973,2]
[404474156,1770178240989,-500.0,0.00017973,2]
[404474157,1770178240998,-500.0,0.00017973,2]
[404474158,1770178241007,-500.0,0.00017973,2]
[404474159,1770178241020,-500.0,0.00017973,2]
[404474160,1770178241029,-500.0,0.00017973,2]
[404474161,1770178241039,-500.0,0.00017973,2]
[404474162,1770178241048,-300.0,0.0001799,2]
[404474163,1770178241058,-3141.93,0.0001799,2]
[404474164,1770178241067,-3141.93,0.0001799,2]
[404474165,1770178241076,-3141.93,0.0001799,2]
[404474166,1770178241085,-3141.93,0.0001799,2]
[404474167,1770178241099,-215.64319657,0.0001799,2]
[404474168,1770178241108,-215.64319657,0.0001799,2]
[404474169,1770178241118,-500.0,0.00017997,2]
[404474170,1770178241128,-151.0,0.00017997,2]
[404474171,1770178241138,-500.0,0.00017999,2]
[404474172,1770178241148,-392.76776902,0.00017999,2]
[404474173,1770178241157,-155.353,0.00017999,2]
[404474174,1770178241167,-300.0,0.00017999,2]
[404474175,1770178241177,-500.0,0.00017999,2]
[404474176,1770178241187,-500.0,0.00017999,2]
[404474177,1770178241196,-500.0,0.00017999,2]
[404474178,1770178241205,-500.0,0.00017999,2]
[404474179,1770178241215,-500.0,0.00017999,2]
[404474180,1770178241224,-500.0,0.00017999,2]
[404474181,1770178241233,-500.0,0.00017999,2]
[404474182,1770178241244,-500.0,0.00017999,2]
[404474183,1770178241253,-500.0,0.00017999,2]
[404474184,1770178241263,-500.0,0.00017999,2]
[404474185,1770178241272,-500.0,0.00017999,2]
[404474186,1770178241281,-500.0,0.00017999,2]
[404474187,1770178241290,-500.0,0.00017999,2]
[404474188,1770178241299,-500.0,0.00017999,2]
[404474189,1770178241308,-500.0,0.00017999,2]
[404474190,1770178241317,-500.0,0.00017999,2]
[404474191,1770178241326,-500.0,0.00017999,2]
[404474192,1770178241335,-500.0,0.00017999,2]
[404474193,1770178241343,-500.0,0.00017999,2]
[404474194,1770178241350,-500.0,0.00017999,2]
[404474195,1770178241358,-500.0,0.00017999,2]
[404474196,1770178241366,-500.0,0.00017999,2]
[404474197,1770178241374,-500.0,0.00017999,2]
[404474198,1770178241384,-239.47366875,0.00017999,2]
[404474199,1770178241393,-500.0,0.00017999,2]
[404474200,1770178241403,-500.0,0.00017999,2]
[404474201,1770178241416,-2668679.30845077,0.00018,2]
[404474202,1770178241425,-227930.82935193,0.00018,2]
[404474203,1770178241452,-4636.4999931,0.00018,2]
[404474204,1770178241463,-1091.00000001,0.00018,2]
[404474205,1770178241478,-25419.99829531,0.00018,2]
[404474223,1770178243293,-2255.445,0.000179,2]
[404474229,1770178243348,-1005.17,0.000179,2]
[404474231,1770178244192,-6152.82157614,0.000179,2]
[404474232,1770178244202,-1378494.13667152,0.00018,2]
[404474236,1770178245663,-301.79071314,0.00018,2]
[404474237,1770178245681,-5532.0,0.00018,2]
[404474280,1770179342959,300.0,0.00017534,120]
[404474326,1770179432345,-500.0,0.000146,2]
[404474328,1770179432355,-121.18661666,0.000146,2]
[404474330,1770179432366,-378.81338334,0.000146,2]
[404474332,1770179432377,-250.0,0.00015,2]
[404474335,1770179432387,-77.08021797,0.00015,2]
[404474336,1770179432398,-748.00966555,0.00015,2]
[404474337,1770179432429,-463.52990528,0.00015,2]
[404474338,1770179432772,-9032.55709336,0.00015,2]
[404474342,1770179437786,-532.28263588,0.00015,2]
[404474343,1770179437796,-491.38585259,0.00015148,2]
[404474344,1770179437844,-93.20393711,0.00015148,2]
[404474345,1770179437853,-543.68192491,0.00015148,2]
[404474346,1770179437864,-456.31807509,0.00015148,2]
[404474347,1770179437874,-943.52386199,0.00015696,2]
[404474348,1770179437903,-556.47613801,0.00015696,2]
[404474349,1770179437912,-195.72251223,0.00015807,2]
[404474350,1770179437922,-1500.0,0.00016082,2]
[404474351,1770179437931,-1000.0,0.00016082,2]
[404474352,1770179437941,-166.66,0.00016103,2]
[404474353,1770179437950,-2000.0,0.00016244,2]
[404474354,1770179437959,-500.0,0.00016356,2]
[404474355,1770179437968,-1000.0,0.00016417,2]
[404474356,1770179437978,-166.66,0.00016442,2]
[404474357,1770179437987,-3240.0,0.00016448,2]
[404474358,1770179437996,-150.0,0.00016466,2]
[404474359,1770179438006,-10853.45951804,0.00016467,2]
[404474360,1770179438015,-500.0,0.00016492,2]
[404474361,1770179438024,-500.0,0.00016526,2]
[404474362,1770179438034,-200.0,0.00016546,2]
[404474363,1770179438043,-159.58944175,0.00016611,2]
[404474364,1770179438053,-160.0,0.00016637,2]
[404474365,1770179438063,-166.66,0.00016781,2]
[404474366,1770179438072,-2500.0,0.00016792,2]
[404474367,1770179438082,-500.0,0.00016899,2]
[404474368,1770179438091,-500.0,0.00016899,2]
[404474369,1770179438101,-500.0,0.00016899,2]
[404474370,1770179438110,-1004.0,0.0001695,2]
[404474371,1770179438120,-1000.0,0.00016979,2]
[404474372,1770179438129,-300.0,0.00017,2]
[404474373,1770179438139,-200.0,0.00017,2]
[404474374,1770179438148,-414.0,0.00017089,2]
[404474375,1770179438157,-1084.77905972,0.00017096,2]
[404474376,1770179438167,-322.6107,0.00017099,2]
[404474377,1770179438177,-174.61919141,0.00017099,2]
[404474378,1770179438186,-209.40437684,0.00017099,2]
[404474379,1770179438196,-166.66,0.0001712,2]
[404474380,1770179438206,-217.15233878,0.00017154,2]
[404474381,1770179438215,-1084.77905972,0.00017178,2]
[404474382,1770179438225,-225.18697532,0.00017209,2]
[404474383,1770179438234,-1084.77905972,0.00017233,2]
[404474384,1770179438243,-200.0,0.00017236,2]
[404474385,1770179438253,-1000.0,0.0001726,2]
[404474386,1770179438263,-233.51889341,0.00017264,2]
[404474387,1770179438272,-1084.77905972,0.00017315,2]
[404474388,1770179438282,-242.15909246,0.00017319,2]
[404474389,1770179438291,-3000.0,0.0001734,2]
[404474390,1770179438302,-1084.77905972,0.0001737,2]
[404474391,1770179438312,-251.11897888,0.00017374,2]
[404474392,1770179438321,-414.0,0.0001738,2]
[404474393,1770179438331,-414.0,0.00017405,2]
[404474394,1770179438340,-153.0,0.00017415,2]
[404474395,1770179438349,-159.0,0.00017415,2]
[404474396,1770179438358,-153.0,0.00017415,2]
[404474397,1770179438368,-153.0,0.00017415,2]
[404474398,1770179438378,-153.0,0.00017415,2]
[404474399,1770179438387,-153.0,0.00017415,2]
[404474400,1770179438396,-153.0,0.00017415,2]
[404474401,1770179438406,-153.0,0.00017415,2]
[404474402,1770179438415,-151.0,0.00017415,2]
[404474403,1770179438425,-153.0,0.00017415,2]
[404474404,1770179438434,-153.0,0.00017415,2]
[404474405,1770179438443,-153.0,0.00017415,2]
[404474406,1770179438453,-153.0,0.00017415,2]
[404474407,1770179438463,-153.0,0.00017415,2]
[404474408,1770179438474,-153.0,0.00017415,2]
[404474409,1770179438484,-153.0,0.00017415,2]
[404474410,1770179438493,-153.0,0.00017415,2]
[404474411,1770179438502,-153.0,0.00017415,2]
[404474412,1770179438511,-153.0,0.00017415,2]
[404474413,1770179438522,-153.0,0.00017415,2]
[404474414,1770179438531,-153.0,0.00017415,2]
[404474415,1770179438541,-153.0,0.00017415,2]
[404474416,1770179438550,-153.0,0.00017415,2]
[404474417,1770179438559,-153.0,0.00017415,2]
[404474418,1770179438568,-153.0,0.00017415,2]
[404474419,1770179438577,-153.0,0.00017415,2]
[404474420,1770179438587,-153.0,0.00017415,2]
[404474421,1770179438596,-153.0,0.00017415,2]
[404474422,1770179438605,-153.0,0.00017415,2]
[404474423,1770179438615,-153.0,0.00017415,2]
[404474424,1770179438625,-153.0,0.00017415,2]
[404474425,1770179438634,-153.0,0.00017415,2]
[404474426,1770179438643,-153.0,0.00017415,2]
[404474427,1770179438653,-153.0,0.00017415,2]
[404474428,1770179438662,-153.0,0.00017415,2]
[404474429,1770179438671,-153.0,0.00017415,2]
[404474430,1770179438680,-153.0,0.00017415,2]
[404474431,1770179438690,-153.0,0.00017415,2]
[404474432,1770179438699,-153.0,0.00017415,2]
[404474433,1770179438708,-153.0,0.00017415,2]
[404474434,1770179438718,-153.0,0.00017415,2]
[404474435,1770179438727,-153.0,0.00017415,2]
[404474436,1770179438736,-153.0,0.00017415,2]
[404474437,1770179438746,-153.0,0.00017415,2]
[404474438,1770179438755,-153.0,0.00017415,2]
[404474439,1770179438765,-153.0,0.00017415,2]
[404474440,1770179438774,-153.0,0.00017415,2]
[404474441,1770179438783,-153.0,0.00017415,2]
[404474442,1770179438793,-153.0,0.00017415,2]
[404474443,1770179438802,-155.94945996,0.00017415,2]
[404474444,1770179438811,-206.94,0.00017415,2]
[404474445,1770179438822,-260.4103811,0.00017429,2]
[404474446,1770179438833,-500.0,0.00017437,2]
[404474447,1770179438843,-1500.0,0.00017452,7]
[404474448,1770179438856,-1000.0,0.00017452,7]
[404474449,1770179438865,-1084.77905972,0.00017452,2]
[404474450,1770179438875,-166.66,0.00017459,2]
[404474451,1770179438885,-890.0,0.00017466,2]
[404474452,1770179438896,-168.0,0.00017474,2]
[404474453,1770179438906,-270.0455652,0.00017484,2]
[404474454,1770179438915,-890.0,0.00017494,2]
[404474455,1770179438925,-414.0,0.00017504,2]
[404474456,1770179438934,-1084.77905972,0.00017507,2]
[404474457,1770179438944,-1000.0,0.00017534,2]
[404474458,1770179438954,-280.03725112,0.00017539,2]
[404474459,1770179438964,-1084.77905972,0.00017589,2]
[404474460,1770179438974,-290.39862941,0.00017594,2]
[404474461,1770179438983,-168.0,0.00017634,2]
[404474462,1770179438993,-890.0,0.00017637,2]
[404474463,1770179439002,-1084.77905972,0.00017644,2]
[404474464,1770179439011,-181.08010149,0.00017647,2]
[404474465,1770179439020,-301.1433787,0.00017649,2]
[404474466,1770179439029,-206.94,0.00017689,2]
[404474467,1770179439039,-2500.0,0.000177,2]
[404474468,1770179439048,-1084.77905972,0.00017726,2]
[404474469,1770179439058,-1084.77905972,0.00017781,2]
[404474470,1770179439067,-890.0,0.00017788,2]
[404474471,1770179439076,-159.58944175,0.00017797,2]
[404474472,1770179439086,-166.66,0.00017798,2]
[404474473,1770179439096,-500.0,0.00017799,2]
[404474474,1770179439106,-574.67653903,0.00017799,2]
[404474475,1770179439115,-621.20778463,0.000178,2]
[404474476,1770179439125,-277.63511856,0.000178,2]
[404474477,1770179439135,-1000.0,0.00017808,2]
[404474478,1770179439144,-890.0,0.00017818,2]
[404474479,1770179439154,-453.134,0.0001782,2]
[404474480,1770179439164,-200.0,0.00017856,2]
[404474481,1770179439174,-1084.77905972,0.00017863,2]
[404474482,1770179439184,-572.91702876,0.00017873,2]
[404474483,1770179439193,-572.91702875,0.00017876,2]
[404474484,1770179439203,-572.91702875,0.00017879,2]
[404474485,1770179439212,-572.91702875,0.00017882,2]
[404474486,1770179439221,-572.91702875,0.00017885,2]
[404474487,1770179439230,-3500.0,0.00017888,2]
[404474488,1770179439240,-572.91702875,0.00017888,2]
[404474489,1770179439249,-572.91702875,0.00017891,2]
[404474490,1770179439259,-572.91702875,0.00017894,2]
[404474491,1770179439268,-572.91702875,0.00017897,2]
[404474492,1770179439277,-221.94474878,0.00017899,2]
[404474493,1770179439287,-189.02279608,0.00017899,2]
[404474494,1770179439296,-500.0,0.000179,2]
[404474495,1770179439306,-10000.0,0.000179,2]
[404474496,1770179439315,-25000.0,0.000179,3]
[404474497,1770179439324,-160.0,0.000179,3]
[404474498,1770179439333,-11574.91590115,0.000179,2]
[404474499,1770179439342,-3262.73040989,0.000179,2]
[404474500,1770179439351,-572.91702875,0.000179,2]
[404474501,1770179439360,-3212.11087912,0.000179,2]
[404474502,1770179439369,-6013.19115473,0.000179,2]
[404474503,1770179439378,-642.20258695,0.000179,3]
[404474504,1770179439388,-263.96771499,0.000179,2]
[404474505,1770179439397,-394.87991475,0.000179,2]
[404474506,1770179439406,-534.2832,0.000179,2]
[404474507,1770179439415,-10853.45951804,0.00017933,2]
[404474508,1770179439424,-206.94,0.00017963,2]
[404474509,1770179439434,-500.0,0.00017973,2]
[404474510,1770179439443,-500.0,0.00017973,2]
[404474511,1770179439452,-500.0,0.00017973,2]
[404474512,1770179439462,-500.0,0.00017973,2]
[404474513,1770179439472,-500.0,0.00017973,2]
[404474514,1770179439482,-500.0,0.00017973,2]
[404474515,1770179439491,-500.0,0.00017973,2]
[404474516,1770179439501,-151.18993016,0.00017973,2]
[404474517,1770179439510,-160.61789884,0.00017973,2]
[404474518,1770179439520,-336.59163653,0.00017973,2]
[404474519,1770179439530,-500.68854041,0.00017973,2]
[404474520,1770179439539,-500.96948842,0.00017973,2]
[404474521,1770179439550,-501.02089422,0.00017973,2]
[404474522,1770179439559,-500.0,0.00017973,2]
[404474523,1770179439568,-496.6693993,0.00017973,2]
[404474525,1770179439578,-500.0,0.00017973,2]
[404474526,1770179439587,-500.0,0.00017973,2]
[404474527,1770179439596,-500.0,0.00017973,2]
[404474528,1770179439606,-465.90748908,0.00017973,2]
[404474529,1770179439615,-200.0,0.00017973,2]
[404474530,1770179439624,-215.64319657,0.0001799,2]
[404474531,1770179439634,-215.64319657,0.0001799,2]
[404474532,1770179439643,-151.0,0.00017997,2]
[404474533,1770179439652,-392.76776902,0.00017999,2]
[404474534,1770179439661,-396.76821578,0.00017999,2]
[404474535,1770179439670,-300.0,0.00017999,2]
[404474536,1770179439679,-300.0,0.00017999,2]
[404474537,1770179439688,-500.0,0.00017999,2]
[404474538,1770179439697,-500.0,0.00017999,2]
[404474539,1770179439707,-500.0,0.00017999,2]
[404474540,1770179439717,-500.0,0.00017999,2]
[404474541,1770179439726,-500.0,0.00017999,2]
[404474542,1770179439736,-500.0,0.00017999,2]
[404474543,1770179439745,-500.0,0.00017999,2]
[404474544,1770179439754,-500.0,0.00017999,2]
[404474545,1770179439764,-500.0,0.00017999,2]
[404474546,1770179439773,-500.0,0.00017999,2]
[404474547,1770179439783,-500.0,0.00017999,2]
[404474548,1770179439793,-500.0,0.00017999,2]
[404474549,1770179439803,-500.0,0.00017999,2]
[404474550,1770179439812,-500.0,0.00017999,2]
[404474551,1770179439822,-500.0,0.00017999,2]
[404474552,1770179439831,-500.0,0.00017999,2]
[404474553,1770179439841,-500.0,0.00017999,2]
[404474554,1770179439850,-500.0,0.00017999,2]
[404474555,1770179439860,-500.0,0.00017999,2]
[404474556,1770179439869,-500.0,0.00017999,2]
[404474557,1770179439878,-500.0,0.00017999,2]
[404474558,1770179439888,-500.0,0.00017999,2]
[404474559,1770179439897,-500.0,0.00017999,2]
[404474560,1770179439907,-239.47366875,0.00017999,2]
[404474561,1770179439916,-500.0,0.00017999,2]
[404474562,1770179439925,-500.0,0.00017999,2]
[404474563,1770179439934,-300.0,0.00017999,2]
[404474564,1770179439943,-9185.0,0.00018,2]
[404474565,1770179439952,-542106.48331722,0.00018,2]
[404474580,1770179440497,-6548.09848506,0.00018,2]
[404474583,1770179440731,-2144.22412023,0.00018,2]
[404474584,1770179440743,-1822751.34422834,0.00018,2]
[404474585,1770179440752,-1289237.63084287,0.00018,2]
[404474593,1770179444520,-615.192,0.00018,2]
[404474609,1770179446036,-748.715,0.00018,2]
[404474610,1770179446094,-18723.42802331,0.00018,2]
[404474815,1770180631847,-4589.22,0.00011233,2]
[404474816,1770180631858,-195.0,0.00011795,2]
[404474817,1770180631870,-300.0,0.00012356,2]
[404474818,1770180631879,-195.0,0.00012356,2]
[404474819,1770180631888,-75.24675912,0.00012449,2]
[404474820,1770180631899,-224.75324088,0.00012449,2]
[404474821,1770180631909,-195.0,0.00012657,2]
[404474822,1770180631918,-300.0,0.00013582,2]
[404474823,1770180631927,-357.40145216,0.00013582,2]
[404474824,1770180631937,-156.16,0.00013666,2]
[404474825,1770180631946,-1200.0,0.00014328,2]
[404474826,1770180631955,-3458.05,0.00014329,2]
[404474827,1770180631963,-10746.89898711,0.00014355,2]
[404474828,1770180631974,-3458.05,0.00014355,2]
[404474829,1770180631983,-300.0,0.00014381,2]
[404474830,1770180631992,-1200.0,0.00014381,2]
[404474831,1770180632002,-3458.05,0.00014382,2]
[404474832,1770180632011,-3458.05,0.00014408,2]
[404474833,1770180632020,-159.0,0.00014413,2]
[404474834,1770180632029,-477.07,0.00014429,2]
[404474835,1770180632039,-3458.05,0.00014434,2]
[404474836,1770180632048,-3458.05,0.00014461,2]
[404474837,1770180632057,-812.36989997,0.00014487,2]
[404474838,1770180632068,-820.54991355,0.00014487,2]
[404474840,1770180632079,-1606.72727158,0.00014487,2]
[404474843,1770180632089,-218.4029149,0.00014487,2]
[404474845,1770180632098,-3404.92006505,0.00014514,2]
[404474847,1770180632109,-53.12993495,0.00014514,2]
[404474849,1770180632118,-156.16,0.0001452,2]
[404474851,1770180632127,-1789.2174899,0.0001454,2]
[404474853,1770180632138,-1668.8325101,0.0001454,2]
[404474855,1770180632147,-675.0,0.00014542,2]
[404474857,1770180632156,-1814.79475886,0.00014566,2]
[404474858,1770180632167,-612.89013257,0.00014566,2]
[404474859,1770180632190,-927.69623708,0.00014566,2]
[404474860,1770180632212,-102.66887149,0.00014566,2]
[404474861,1770180632221,-163.17816343,0.0001459,2]
[404474862,1770180632247,-346.39653801,0.0001459,2]
[404474863,1770180632257,-3458.05,0.00014593,2]
[404474864,1770180632266,-150.0,0.00014599,2]
[404474865,1770180632276,-500.0,0.000146,2]
[404474866,1770180632284,-502.50130804,0.000146,2]
[404474867,1770180632294,-305.0339634,0.000146,2]
[404474868,1770180632303,-500.0,0.000146,2]
[404474869,1770180632312,-500.0,0.000146,2]
[404474870,1770180632321,-500.0,0.000146,2]
[404474871,1770180632330,-312.42973407,0.00014607,2]
[404474872,1770180632340,-3458.05,0.00014619,2]
[404474873,1770180632350,-3440.39600693,0.00014645,2]
[404474874,1770180632361,-17.65399307,0.00014645,2]
[404474875,1770180632369,-2641.59185579,0.00014672,2]
[404474876,1770180632380,-816.45814421,0.00014672,2]
[404474877,1770180632389,-3458.05,0.00014698,2]
[404474878,1770180632398,-3458.05,0.00014725,2]
[404474879,1770180632407,-3458.05,0.00014751,2]
[404474880,1770180632416,-6698.47899589,0.00014758,2]
[404474881,1770180632426,-932.34540372,0.00014758,2]
[404474882,1770180632437,-1206.29814067,0.00014758,2]
[404474883,1770180632446,-3458.05,0.00014777,2]
[404474884,1770180632455,-3458.05,0.00014804,2]
[404474885,1770180632465,-3458.05,0.0001483,2]
[404474886,1770180632474,-614.9054574,0.00014838,2]
[404474887,1770180632483,-151.0,0.00014845,2]
[404474888,1770180632492,-151.0,0.00014845,2]
[404474889,1770180632501,-150.0,0.00014857,2]
[404474890,1770180632511,-191.91471032,0.00014948,2]
[404474891,1770180632520,-140.15860554,0.00014948,2]
[404474892,1770180632531,-299.01254492,0.00014948,2]
[404474893,1770180632540,-500.0,0.00015038,2]
[404474894,1770180632549,-202.29846219,0.00015039,2]
[404474895,1770180632559,-500.0,0.00015039,2]
[404474896,1770180632568,-151.0,0.00015039,2]
[404474897,1770180632576,-500.0,0.00015039,2]
[404474898,1770180632586,-151.0,0.00015039,2]
[404474899,1770180632595,-500.0,0.00015039,2]
[404474900,1770180632604,-151.0,0.00015039,2]
[404474901,1770180632613,-500.0,0.00015039,2]
[404474902,1770180632622,-151.0,0.00015039,2]
[404474903,1770180632631,-500.0,0.00015039,2]
[404474904,1770180632640,-151.0,0.00015039,2]
[404474905,1770180632649,-500.0,0.00015039,2]
[404474906,1770180632658,-151.0,0.00015039,2]
[404474907,1770180632667,-500.0,0.00015039,2]
[404474908,1770180632677,-151.0,0.00015039,2]
[404474909,1770180632686,-500.0,0.00015039,2]
[404474910,1770180632695,-500.0,0.00015039,2]
[404474911,1770180632705,-151.0,0.00015039,2]
[404474912,1770180632714,-500.0,0.00015039,2]
[404474913,1770180632723,-151.0,0.00015039,2]
[404474914,1770180632732,-151.0,0.00015039,2]
[404474915,1770180632741,-510.88207769,0.00015039,2]
[404474916,1770180632750,-151.0,0.00015039,2]
[404474917,1770180632759,-500.0,0.00015039,2]
[404474918,1770180632768,-500.0,0.00015039,2]
[404474919,1770180632777,-500.0,0.00015039,2]
[404474920,1770180632786,-500.0,0.00015039,2]
[404474921,1770180632795,-500.0,0.00015039,2]
[404474922,1770180632804,-500.0,0.00015039,2]
[404474923,1770180632814,-500.0,0.00015039,2]
[404474924,1770180632823,-500.0,0.00015039,2]
[404474925,1770180632832,-446.398853,0.00015039,2]
[404474926,1770180632842,-288.76892517,0.00015045,2]
[404474927,1770180632852,-708.023,0.00015045,2]
[404474928,1770180632863,-242.85,0.00015046,2]
[404474929,1770180632873,-547.91380347,0.00015047,2]
[404474930,1770180632883,-559.34492563,0.00015047,2]
[404474931,1770180632892,-529.30144481,0.00015047,2]
[404474932,1770180632903,-500.0,0.00015047,2]
[404474933,1770180632912,-500.0,0.00015047,2]
[404474934,1770180632921,-500.0,0.00015047,2]
[404474935,1770180632930,-154.56738754,0.00015047,2]
[404474936,1770180632940,-825.0,0.00015065,2]
[404474937,1770180632950,-1179.0,0.00015095,2]
[404474938,1770180632959,-2138.64354432,0.00015107,2]
[404474939,1770180632969,-14587.34187276,0.00015117,2]
[404474940,1770180632978,-507.62751642,0.00015148,2]
[404474941,1770180632987,-509.04322248,0.00015148,2]
[404474942,1770180632996,-504.53493259,0.00015148,2]
[404474943,1770180633005,-1000.0,0.00015148,2]
[404474944,1770180633015,-2548.30292007,0.00015221,2]
[404474945,1770180633025,-500.0,0.00015312,2]
[404474946,1770180633035,-242.85,0.0001532,2]
[404474947,1770180633044,-156.16,0.00015374,2]
[404474948,1770180633054,-4640.38527053,0.00015386,2]
[404474949,1770180633070,-722.18080376,0.00015386,2]
[404474950,1770180633081,-474.202935,0.00015386,2]
[404474954,1770180638001,-500.0,0.00014845,2]
[404474955,1770180638011,-500.0,0.00015119,2]
[404474956,1770180638021,-861.70998655,0.00015386,2]
[404474957,1770180638030,-504.09113021,0.00015393,2]
[404474958,1770180638040,-439.17115042,0.0001544,2]
[404474959,1770180638049,-2138.64354432,0.00015456,2]
[404474960,1770180638059,-2548.30291998,0.00015519,2]
[404474961,1770180638069,-502.94499964,0.00015587,2]
[404474962,1770180638079,-242.85,0.00015594,2]
[404474963,1770180638092,-191.91471031,0.00015686,2]
[404474964,1770180638102,-1500.0,0.00015696,2]
[404474965,1770180638112,-255.0,0.00015723,2]
[404474966,1770180638122,-169.0,0.00015749,2]
[404474967,1770180638131,-1680.0,0.00015761,2]
[404474968,1770180638141,-2138.64354432,0.00015805,2]
[404474969,1770180638151,-1100.0,0.00015808,2]
[404474970,1770180638160,-2548.30291998,0.00015816,2]
[404474971,1770180638169,-151.0,0.00015841,2]
[404474972,1770180638179,-10746.89898711,0.00015844,2]
[404474973,1770180638189,-242.85,0.00015868,2]
[404474974,1770180638199,-195.0,0.00015872,2]
[404474975,1770180638208,-190.48368815,0.00015932,2]
[404474976,1770180638224,-248.68746227,0.00015932,2]
[404474977,1770180638234,-150.00000001,0.00016,2]
[404474978,1770180638243,-6698.47899584,0.00016015,2]
[404474979,1770180638253,-1500.0,0.00016082,2]
[404474980,1770180638263,-387.3763594,0.00016114,2]
[404474981,1770180638313,-2160.92656058,0.00016114,2]
[404474982,1770180638323,-288.19,0.00016116,2]
[404474983,1770180638332,-242.85,0.00016142,2]
[404474984,1770180638342,-156.16,0.00016228,2]
[404474985,1770180638352,-500.0,0.00016244,2]
[404474986,1770180638362,-2000.0,0.00016244,2]
[404474987,1770180638372,-192.88,0.0001635,2]
[404474988,1770180638381,-500.0,0.00016356,2]
[404474989,1770180638391,-2548.30291998,0.00016412,2]
[404474990,1770180638400,-242.85,0.00016416,2]
[404474991,1770180638409,-191.91471031,0.00016424,2]
[404474992,1770180638419,-439.17115042,0.00016424,2]
[404474993,1770180638428,-487.0364942,0.00016541,2]
[404474994,1770180638438,-6698.47899584,0.00016643,2]
[404474995,1770180638447,-160.0,0.00016649,2]
[404474996,1770180638457,-242.85,0.0001669,2]
[404474997,1770180638467,-2548.30291998,0.00016709,2]
[404474998,1770180638479,-165.74,0.00016712,2]
[404474999,1770180638488,-159.58944175,0.00016731,2]
[404475000,1770180638498,-2500.0,0.00016792,2]
[404475001,1770180638508,-439.17115042,0.00016916,2]
[404475002,1770180638517,-228.0,0.00016935,2]